fUSD/lending_fUSD_20240409
["ID","MTS","AMOUNT","RATE_DAILY","PERIOD"]
[322014584,1712687441278,-500.0,0.00019452,2]
[322014585,1712687441288,-517.33,0.00019452,2]
[322014586,1712687441298,-866.73,0.00019452,2]
[322014587,1712687441308,-500.0,0.00019452,2]
[322014588,1712687441318,-500.0,0.00019452,2]
[322014589,1712687441327,-500.0,0.00019452,2]
[322014590,1712687441338,-500.0,0.00019452,2]
[322014591,1712687441348,-500.0,0.00019452,2]
[322014592,1712687441356,-500.0,0.00019452,2]
[322014593,1712687441368,-330.6,0.00019452,2]
[322014594,1712687441377,-500.0,0.00019452,2]
[322014595,1712687441386,-500.0,0.00019452,2]
[322014596,1712687441396,-500.0,0.00019452,2]
[322014597,1712687441406,-500.0,0.00019452,2]
[322014598,1712687441415,-500.0,0.00019452,2]
[322014599,1712687441424,-500.0,0.00019452,2]
[322014600,1712687441433,-428.80357715,0.00019452,2]
[322014601,1712687441443,-500.0,0.00019452,2]
[322014602,1712687441451,-500.0,0.00019452,2]
[322014603,1712687441460,-500.0,0.00019452,2]
[322014604,1712687441469,-500.0,0.00019452,2]
[322014605,1712687441479,-500.0,0.00019452,2]
[322014606,1712687441488,-500.0,0.00019452,2]
[322014607,1712687441497,-500.0,0.00019452,2]
[322014608,1712687441506,-500.0,0.00019452,2]
[322014609,1712687441515,-500.0,0.00019452,2]
[322014610,1712687441525,-500.0,0.00019452,2]
[322014611,1712687441534,-500.0,0.00019452,2]
[322014612,1712687441544,-500.0,0.00019452,2]
[322014613,1712687441552,-396.73247125,0.00019452,2]
[322014614,1712687441565,-500.0,0.00019452,2]
[322014615,1712687441576,-500.0,0.00019452,2]
[322014616,1712687441586,-500.0,0.00019452,2]
[322014617,1712687441596,-500.0,0.00019452,2]
[322014618,1712687441606,-500.0,0.00019452,2]
[322014619,1712687441616,-500.0,0.00019452,2]
[322014620,1712687441626,-500.0,0.00019452,2]
[322014621,1712687441635,-500.0,0.00019452,2]
[322014622,1712687441645,-500.0,0.00019452,2]
[322014623,1712687441657,-500.0,0.00019452,2]
[322014624,1712687441668,-500.0,0.00019452,2]
[322014625,1712687441677,-500.0,0.00019452,2]
[322014626,1712687441686,-500.0,0.00019452,2]
[322014627,1712687441696,-571.26,0.00019452,2]
[322014628,1712687441705,-500.0,0.00019452,2]
[322014629,1712687441714,-500.0,0.00019452,2]
[322014630,1712687441723,-500.0,0.00019452,2]
[322014631,1712687441733,-500.0,0.00019452,2]
[322014632,1712687441742,-500.0,0.00019452,2]
[322014633,1712687441751,-500.0,0.00019452,2]
[322014634,1712687441760,-500.0,0.00019452,2]
[322014635,1712687441770,-500.0,0.00019452,2]
[322014636,1712687441779,-150.0,0.00019452,2]
[322014637,1712687441789,-500.0,0.00019452,2]
[322014638,1712687441799,-500.0,0.00019452,2]
[322014639,1712687441809,-500.0,0.00019452,2]
[322014640,1712687441818,-500.0,0.00019452,2]
[322014641,1712687441827,-500.0,0.00019452,2]
[322014642,1712687441837,-500.0,0.00019452,2]
[322014643,1712687441846,-500.0,0.00019452,2]
[322014644,1712687441856,-500.0,0.00019452,2]
[322014645,1712687441865,-500.0,0.00019452,2]
[322014646,1712687441874,-751.36,0.00019452,2]
[322014647,1712687441884,-500.0,0.00019452,2]
[322014648,1712687441893,-500.0,0.00019452,2]
[322014649,1712687441903,-500.0,0.00019452,2]
[322014650,1712687441912,-500.0,0.00019452,2]
[322014651,1712687441921,-500.0,0.00019452,2]
[322014652,1712687441931,-500.0,0.00019452,2]
[322014653,1712687441940,-592.3,0.00019452,2]
[322014654,1712687441950,-500.0,0.00019452,2]
[322014655,1712687441959,-500.0,0.00019452,2]
[322014656,1712687441968,-500.0,0.00019452,2]
[322014657,1712687441978,-500.0,0.00019452,2]
[322014658,1712687441987,-500.0,0.00019452,2]
[322014659,1712687441996,-500.0,0.00019452,2]
[322014660,1712687442006,-500.0,0.00019452,2]
[322014661,1712687442015,-500.0,0.00019452,2]
[322014662,1712687442025,-500.0,0.00019452,2]
[322014663,1712687442034,-500.0,0.00019452,2]
[322014664,1712687442043,-500.0,0.00019452,2]
[322014665,1712687442054,-500.0,0.00019452,2]
[322014666,1712687442064,-500.0,0.00019452,2]
[322014667,1712687442073,-500.0,0.00019452,2]
[322014668,1712687442082,-500.0,0.00019452,2]
[322014669,1712687442092,-500.0,0.00019452,2]
[322014670,1712687442101,-500.0,0.00019452,2]
[322014671,1712687442111,-500.0,0.00019452,2]
[322014672,1712687442121,-500.0,0.00019452,2]
[322014673,1712687442130,-500.0,0.00019452,2]
[322014674,1712687442140,-900.71,0.00019452,2]
[322014675,1712687442149,-967.48,0.00019452,2]
[322014676,1712687442158,-500.0,0.00019452,2]
[322014677,1712687442168,-500.0,0.00019452,2]
[322014678,1712687442177,-500.0,0.00019452,2]
[322014679,1712687442186,-500.0,0.00019452,2]
[322014680,1712687442196,-500.0,0.00019452,2]
[322014681,1712687442205,-500.0,0.00019452,2]
[322014682,1712687442215,-2338.52,0.00019452,2]
[322014683,1712687442224,-152.52155567,0.00019452,2]
[322014684,1712687442233,-500.0,0.00019452,2]
[322014685,1712687442243,-581.2,0.00019452,2]
[322014686,1712687442252,-500.0,0.00019452,2]
[322014687,1712687442261,-500.0,0.00019452,2]
[322014688,1712687442270,-1413.04,0.00019452,2]
[322014689,1712687442280,-848.02,0.00019452,2]
[322014690,1712687442289,-2390.44,0.00019452,2]
[322014691,1712687442299,-500.0,0.00019452,2]
[322014692,1712687442309,-500.0,0.00019452,2]
[322014693,1712687442318,-500.0,0.00019452,2]
[322014694,1712687442330,-1107.43,0.00019452,2]
[322014695,1712687442339,-500.0,0.00019452,2]
[322014696,1712687442348,-9038.22,0.00019452,2]
[322014697,1712687442357,-500.0,0.00019452,2]
[322014698,1712687442367,-552.83,0.00019452,2]
[322014699,1712687442376,-500.0,0.00019452,2]
[322014700,1712687442385,-500.0,0.00019452,2]
[322014701,1712687442394,-500.0,0.00019452,2]
[322014702,1712687442403,-663.45,0.00019452,2]
[322014703,1712687442412,-1271.78,0.00019452,2]
[322014704,1712687442422,-1308.48,0.00019452,2]
[322014705,1712687442431,-651.41,0.00019452,2]
[322014706,1712687442440,-500.0,0.00019452,2]
[322014707,1712687442448,-1398.63,0.00019452,2]
[322014708,1712687442457,-500.0,0.00019452,2]
[322014709,1712687442466,-691.72,0.00019452,2]
[322014710,1712687442475,-596.04,0.00019452,2]
[322014711,1712687442484,-500.0,0.00019452,2]
[322014712,1712687442493,-749.96,0.00019452,2]
[322014713,1712687442502,-500.0,0.00019452,2]
[322014714,1712687442511,-576.33,0.00019452,2]
[322014715,1712687442523,-500.0,0.00019452,2]
[322014716,1712687442533,-612.43,0.00019452,2]
[322014717,1712687442544,-531.62,0.00019452,2]
[322014718,1712687442555,-983.15,0.00019452,2]
[322014719,1712687442564,-500.0,0.00019452,2]
[322014720,1712687442576,-1408.8,0.00019452,2]
[322014721,1712687442586,-500.0,0.00019452,2]
[322014722,1712687442596,-1037.26,0.00019452,2]
[322014723,1712687442606,-579.9,0.00019452,2]
[322014724,1712687442616,-500.0,0.00019452,2]
[322014725,1712687442625,-500.0,0.00019452,2]
[322014726,1712687442635,-561.4,0.00019452,2]
[322014727,1712687442646,-500.0,0.00019452,2]
[322014728,1712687442655,-500.0,0.00019452,2]
[322014729,1712687442665,-500.0,0.00019452,2]
[322014730,1712687442675,-993.54,0.00019452,2]
[322014731,1712687442684,-517.37,0.00019452,2]
[322014732,1712687442694,-500.0,0.00019452,2]
[322014733,1712687442703,-662.75,0.00019452,2]
[322014734,1712687442713,-500.0,0.00019452,2]
[322014735,1712687442722,-1049.42,0.00019452,2]
[322014736,1712687442731,-500.0,0.00019452,2]
[322014737,1712687442742,-500.0,0.00019452,2]
[322014738,1712687442752,-606.82,0.00019452,2]
[322014739,1712687442761,-500.0,0.00019452,2]
[322014740,1712687442770,-581.35,0.00019452,2]
[322014741,1712687442780,-2158.3,0.00019452,2]
[322014742,1712687442789,-500.0,0.00019452,2]
[322014743,1712687442800,-500.0,0.00019452,2]
[322014744,1712687442810,-500.0,0.00019452,2]
[322014745,1712687442819,-500.0,0.00019452,2]
[322014746,1712687442829,-1466.88,0.00019452,2]
[322014747,1712687442838,-500.0,0.00019452,2]
[322014748,1712687442847,-595.48039353,0.00019452,2]
[322014749,1712687442856,-2724.94,0.00019452,2]
[322014750,1712687442866,-851.21,0.00019452,2]
[322014751,1712687442875,-500.0,0.00019452,2]
[322014752,1712687442884,-500.0,0.00019452,2]
[322014753,1712687442894,-500.0,0.00019452,2]
[322014754,1712687442903,-736.8,0.00019452,2]
[322014755,1712687442913,-500.0,0.00019452,2]
[322014756,1712687442922,-596.39,0.00019452,2]
[322014757,1712687442932,-704.18,0.00019452,2]
[322014758,1712687442941,-283.43908908,0.00019452,2]
[322014759,1712687442951,-500.0,0.00019452,2]
[322014760,1712687442960,-500.0,0.00019452,2]
[322014762,1712687442969,-5251.19,0.00019452,2]
[322014764,1712687442978,-501.63,0.00019452,2]
[322014765,1712687442987,-500.0,0.00019452,2]
[322014767,1712687442997,-1648.75,0.00019452,2]
[322014769,1712687443006,-770.37,0.00019452,2]
[322014770,1712687443015,-568.72,0.00019452,2]
[322014771,1712687443024,-500.0,0.00019452,2]
[322014772,1712687443034,-1453.16,0.00019452,2]
[322014773,1712687443043,-1425.93,0.00019452,2]
[322014774,1712687443054,-1557.32,0.00019452,2]
[322014775,1712687443063,-519.69,0.00019452,2]
[322014776,1712687443072,-2340.92,0.00019452,2]
[322014777,1712687443081,-1459.26,0.00019452,2]
[322014778,1712687443091,-500.0,0.00019452,2]
[322014779,1712687443100,-3149.37,0.00019452,2]
[322014780,1712687443109,-500.0,0.00019452,2]
[322014781,1712687443118,-500.0,0.00019452,2]
[322014782,1712687443128,-500.0,0.00019452,2]
[322014783,1712687443137,-529.18,0.00019452,2]
[322014784,1712687443146,-838.19,0.00019452,2]
[322014785,1712687443156,-866.71,0.00019452,2]
[322014786,1712687443165,-500.0,0.00019452,2]
[322014787,1712687443175,-500.0,0.00019452,2]
[322014788,1712687443184,-706.55,0.00019452,2]
[322014789,1712687443193,-6351.03,0.00019452,2]
[322014790,1712687443202,-500.0,0.00019452,2]
[322014791,1712687443211,-571.65,0.00019452,2]
[322014792,1712687443221,-500.0,0.00019452,2]
[322014793,1712687443230,-500.0,0.00019452,2]
[322014794,1712687443240,-1254.69,0.00019452,2]
[322014795,1712687443250,-500.0,0.00019452,2]
[322014796,1712687443259,-816.55,0.00019452,2]
[322014797,1712687443268,-523.23,0.00019452,2]
[322014798,1712687443277,-500.0,0.00019452,2]
[322014799,1712687443287,-500.0,0.00019452,2]
[322014800,1712687443297,-740.6,0.00019452,2]
[322014801,1712687443308,-1506.67,0.00019452,2]
[322014802,1712687443317,-924.41,0.00019452,2]
[322014803,1712687443326,-548.87,0.00019452,2]
[322014804,1712687443336,-902.98,0.00019452,2]
[322014805,1712687443346,-883.25,0.00019452,2]
[322014806,1712687443356,-500.0,0.00019452,2]
[322014807,1712687443366,-500.0,0.00019452,2]
[322014808,1712687443375,-500.0,0.00019452,2]
[322014809,1712687443385,-521.13,0.00019452,2]
[322014810,1712687443394,-578.21,0.00019452,2]
[322014811,1712687443404,-638.76,0.00019452,2]
[322014812,1712687443414,-500.0,0.00019452,2]
[322014813,1712687443423,-500.0,0.00019452,2]
[322014814,1712687443432,-500.0,0.00019452,2]
[322014815,1712687443441,-1113.68,0.00019452,2]
[322014816,1712687443451,-500.0,0.00019452,2]
[322014817,1712687443462,-1454.91,0.00019452,2]
[322014818,1712687443472,-500.0,0.00019452,2]
[322014819,1712687443481,-500.0,0.00019452,2]
[322014820,1712687443491,-500.0,0.00019452,2]
[322014821,1712687443500,-818.77,0.00019452,2]
[322014822,1712687443510,-500.0,0.00019452,2]
[322014823,1712687443519,-870.77,0.00019452,2]
[322014824,1712687443529,-594.45,0.00019452,2]
[322014825,1712687443538,-630.88,0.00019452,2]
[322014826,1712687443548,-500.0,0.00019452,2]
[322014827,1712687443557,-366.27697533,0.00019452,2]
[322014828,1712687443568,-1318.04,0.00019452,2]
[322014829,1712687443581,-2059.55,0.00019452,2]
[322014830,1712687443590,-1412.05,0.00019452,2]
[322014831,1712687443600,-500.0,0.00019452,2]
[322014832,1712687443609,-261.63927436,0.00019452,2]
[322014833,1712687443619,-650.49195504,0.00019527,2]
[322014834,1712687443629,-150.0,0.00019592,2]
[322014835,1712687443638,-221.83669334,0.0001961,2]
[322014836,1712687443647,-1570.24668823,0.00019626,2]
[322014837,1712687443657,-196.41457958,0.00019724,2]
[322014838,1712687443666,-500.0,0.00019726,2]
[322014839,1712687443675,-500.0,0.00019726,2]
[322014840,1712687443685,-500.0,0.00019726,2]
[322014841,1712687443694,-500.0,0.00019726,2]
[322014843,1712687443703,-517.33,0.00019726,2]
[322014844,1712687443715,-866.73,0.00019726,2]
[322014845,1712687443724,-500.0,0.00019726,2]
[322014846,1712687443733,-500.0,0.00019726,2]
[322014847,1712687443743,-500.0,0.00019726,2]
[322014848,1712687443752,-500.0,0.00019726,2]
[322014849,1712687443762,-500.0,0.00019726,2]
[322014850,1712687443772,-180.39450629,0.00019726,2]
[322014851,1712687443782,-500.0,0.00019726,2]
[322014852,1712687443791,-500.0,0.00019726,2]
[322014853,1712687443801,-500.0,0.00019726,2]
[322014854,1712687443810,-500.0,0.00019726,2]
[322014855,1712687443819,-500.0,0.00019726,2]
[322014856,1712687443829,-500.0,0.00019726,2]
[322014857,1712687443838,-500.0,0.00019726,2]
[322014858,1712687443847,-500.0,0.00019726,2]
[322014859,1712687443856,-500.0,0.00019726,2]
[322014860,1712687443865,-500.0,0.00019726,2]
[322014861,1712687443874,-500.0,0.00019726,2]
[322014862,1712687443884,-500.0,0.00019726,2]
[322014863,1712687443893,-500.0,0.00019726,2]
[322014864,1712687443902,-500.0,0.00019726,2]
[322014865,1712687443912,-313.63466543,0.00019726,2]
[322014866,1712687443921,-500.0,0.00019726,2]
[322014867,1712687443931,-500.0,0.00019726,2]
[322014868,1712687443940,-500.0,0.00019726,2]
[322014869,1712687443949,-500.0,0.00019726,2]
[322014870,1712687443958,-500.0,0.00019726,2]
[322014871,1712687443967,-500.0,0.00019726,2]
[322014872,1712687443976,-500.0,0.00019726,2]
[322014873,1712687443986,-500.0,0.00019726,2]
[322014874,1712687443995,-500.0,0.00019726,2]
[322014875,1712687444005,-500.0,0.00019726,2]
[322014876,1712687444015,-500.0,0.00019726,2]
[322014877,1712687444025,-500.0,0.00019726,2]
[322014878,1712687444035,-500.0,0.00019726,2]
[322014879,1712687444045,-500.0,0.00019726,2]
[322014880,1712687444056,-500.0,0.00019726,2]
[322014881,1712687444065,-500.0,0.00019726,2]
[322014882,1712687444074,-571.26,0.00019726,2]
[322014883,1712687444084,-500.0,0.00019726,2]
[322014884,1712687444094,-500.0,0.00019726,2]
[322014885,1712687444103,-500.0,0.00019726,2]
[322014886,1712687444112,-500.0,0.00019726,2]
[322014887,1712687444121,-500.0,0.00019726,2]
[322014888,1712687444130,-500.0,0.00019726,2]
[322014889,1712687444140,-500.0,0.00019726,2]
[322014890,1712687444149,-500.0,0.00019726,2]
[322014891,1712687444158,-150.0,0.00019726,2]
[322014892,1712687444167,-500.0,0.00019726,2]
[322014893,1712687444176,-500.0,0.00019726,2]
[322014894,1712687444186,-500.0,0.00019726,2]
[322014895,1712687444195,-500.0,0.00019726,2]
[322014896,1712687444204,-500.0,0.00019726,2]
[322014897,1712687444213,-500.0,0.00019726,2]
[322014898,1712687444222,-500.0,0.00019726,2]
[322014899,1712687444231,-500.0,0.00019726,2]
[322014900,1712687444240,-500.0,0.00019726,2]
[322014901,1712687444250,-751.36,0.00019726,2]
[322014902,1712687444259,-500.0,0.00019726,2]
[322014903,1712687444268,-500.0,0.00019726,2]
[322014904,1712687444277,-500.0,0.00019726,2]
[322014905,1712687444286,-500.0,0.00019726,2]
[322014906,1712687444295,-500.0,0.00019726,2]
[322014907,1712687444305,-500.0,0.00019726,2]
[322014908,1712687444314,-592.3,0.00019726,2]
[322014909,1712687444323,-500.0,0.00019726,2]
[322014910,1712687444333,-500.0,0.00019726,2]
[322014911,1712687444342,-500.0,0.00019726,2]
[322014912,1712687444351,-500.0,0.00019726,2]
[322014913,1712687444360,-606.05031839,0.00019726,2]
[322014914,1712687444370,-309.80828544,0.00019726,2]
[322014915,1712687444379,-500.0,0.00019726,2]
[322014916,1712687444389,-500.0,0.00019726,2]
[322014917,1712687444400,-500.0,0.00019726,2]
[322014918,1712687444410,-500.0,0.00019726,2]
[322014919,1712687444420,-500.0,0.00019726,2]
[322014920,1712687444432,-500.0,0.00019726,2]
[322014921,1712687444442,-172.62376521,0.00019726,2]
[322014922,1712687444452,-500.0,0.00019726,2]
[322014923,1712687444465,-500.0,0.00019726,2]
[322014924,1712687444475,-500.0,0.00019726,2]
[322014925,1712687444486,-500.0,0.00019726,2]
[322014926,1712687444496,-500.0,0.00019726,2]
[322014927,1712687444505,-500.0,0.00019726,2]
[322014928,1712687444514,-500.0,0.00019726,2]
[322014929,1712687444525,-900.71,0.00019726,2]
[322014930,1712687444535,-967.48,0.00019726,2]
[322014931,1712687444546,-183.22641389,0.00019726,2]
[322014932,1712687444558,-500.0,0.00019726,2]
[322014933,1712687444571,-500.0,0.00019726,2]
[322014934,1712687444582,-500.0,0.00019726,2]
[322014935,1712687444593,-500.0,0.00019726,2]
[322014936,1712687444603,-500.0,0.00019726,2]
[322014937,1712687444612,-2338.52,0.00019726,2]
[322014938,1712687444623,-500.0,0.00019726,2]
[322014939,1712687444632,-581.2,0.00019726,2]
[322014940,1712687444642,-500.0,0.00019726,2]
[322014941,1712687444652,-500.0,0.00019726,2]
[322014942,1712687444663,-1413.04,0.00019726,2]
[322014943,1712687444672,-848.02,0.00019726,2]
[322014944,1712687444682,-2390.44,0.00019726,2]
[322014945,1712687444858,-500.0,0.00019726,2]
[322014946,1712687444889,-500.0,0.00019726,2]
[322014947,1712687444899,-500.0,0.00019726,2]
[322014948,1712687444909,-1107.43,0.00019726,2]
[322014949,1712687444918,-500.0,0.00019726,2]
[322014950,1712687444928,-9038.22,0.00019726,2]
[322014951,1712687444937,-500.0,0.00019726,2]
[322014952,1712687444946,-552.83,0.00019726,2]
[322014953,1712687444957,-500.0,0.00019726,2]
[322014954,1712687444966,-500.0,0.00019726,2]
[322014955,1712687444975,-500.0,0.00019726,2]
[322014956,1712687444984,-663.45,0.00019726,2]
[322014957,1712687444993,-1271.78,0.00019726,2]
[322014958,1712687445002,-1308.48,0.00019726,2]
[322014959,1712687445011,-651.41,0.00019726,2]
[322014960,1712687445020,-500.0,0.00019726,2]
[322014961,1712687445030,-1398.63,0.00019726,2]
[322014962,1712687445039,-500.0,0.00019726,2]
[322014963,1712687445049,-691.72,0.00019726,2]
[322014964,1712687445059,-596.04,0.00019726,2]
[322014965,1712687445068,-749.96,0.00019726,2]
[322014966,1712687445078,-500.0,0.00019726,2]
[322014967,1712687445087,-500.0,0.00019726,2]
[322014968,1712687445097,-576.33,0.00019726,2]
[322014969,1712687445106,-500.0,0.00019726,2]
[322014970,1712687445116,-612.43,0.00019726,2]
[322014971,1712687445125,-531.62,0.00019726,2]
[322014972,1712687445135,-983.15,0.00019726,2]
[322014973,1712687445144,-500.0,0.00019726,2]
[322014974,1712687445153,-1408.8,0.00019726,2]
[322014975,1712687445163,-500.0,0.00019726,2]
[322014976,1712687445173,-1037.26,0.00019726,2]
[322014977,1712687445182,-579.9,0.00019726,2]
[322014978,1712687445191,-500.0,0.00019726,2]
[322014979,1712687445200,-500.0,0.00019726,2]
[322014980,1712687445210,-561.4,0.00019726,2]
[322014981,1712687445220,-500.0,0.00019726,2]
[322014982,1712687445232,-500.0,0.00019726,2]
[322014983,1712687445244,-500.0,0.00019726,2]
[322014984,1712687445255,-993.54,0.00019726,2]
[322014985,1712687445265,-517.37,0.00019726,2]
[322014986,1712687445277,-274.12977026,0.00019726,2]
[322014987,1712687445289,-662.75,0.00019726,2]
[322014988,1712687445299,-500.0,0.00019726,2]
[322014989,1712687445309,-1049.42,0.00019726,2]
[322014990,1712687445320,-500.0,0.00019726,2]
[322014991,1712687445329,-500.0,0.00019726,2]
[322014992,1712687445339,-606.82,0.00019726,2]
[322014993,1712687445349,-500.0,0.00019726,2]
[322014994,1712687445358,-581.35,0.00019726,2]
[322014995,1712687445369,-2158.3,0.00019726,2]
[322014996,1712687445380,-500.0,0.00019726,2]
[322014997,1712687445390,-500.0,0.00019726,2]
[322014998,1712687445401,-500.0,0.00019726,2]
[322014999,1712687445412,-500.0,0.00019726,2]
[322015000,1712687445421,-1466.88,0.00019726,2]
[322015001,1712687445430,-500.0,0.00019726,2]
[322015002,1712687445440,-2724.94,0.00019726,2]
[322015003,1712687445449,-851.21,0.00019726,2]
[322015004,1712687445458,-500.0,0.00019726,2]
[322015005,1712687445466,-500.0,0.00019726,2]
[322015006,1712687445476,-422.03142234,0.00019726,2]
[322015007,1712687445485,-736.8,0.00019726,2]
[322015008,1712687445494,-500.0,0.00019726,2]
[322015009,1712687445504,-596.39,0.00019726,2]
[322015010,1712687445513,-704.18,0.00019726,2]
[322015011,1712687445524,-500.0,0.00019726,2]
[322015012,1712687445533,-500.0,0.00019726,2]
[322015013,1712687445543,-5251.19,0.00019726,2]
[322015014,1712687445553,-501.63,0.00019726,2]
[322015015,1712687445562,-500.0,0.00019726,2]
[322015016,1712687445574,-1648.75,0.00019726,2]
[322015017,1712687445584,-770.37,0.00019726,2]
[322015018,1712687445593,-568.72,0.00019726,2]
[322015019,1712687445602,-500.0,0.00019726,2]
[322015020,1712687445612,-1453.16,0.00019726,2]
[322015021,1712687445621,-1425.93,0.00019726,2]
[322015022,1712687445631,-1557.32,0.00019726,2]
[322015023,1712687445640,-2340.92,0.00019726,2]
[322015024,1712687445650,-519.69,0.00019726,2]
[322015025,1712687445659,-1459.26,0.00019726,2]
[322015026,1712687445718,-390.37441578,0.00019726,2]
[322015027,1712687445727,-3149.37,0.00019726,2]
[322015028,1712687445737,-500.0,0.00019726,2]
[322015029,1712687445747,-500.0,0.00019726,2]
[322015030,1712687445757,-500.0,0.00019726,2]
[322015031,1712687445767,-529.18,0.00019726,2]
[322015032,1712687445776,-838.19,0.00019726,2]
[322015033,1712687445786,-866.71,0.00019726,2]
[322015034,1712687445796,-422.99827033,0.00019726,2]
[322015035,1712687445806,-500.0,0.00019726,2]
[322015036,1712687445816,-706.55,0.00019726,2]
[322015037,1712687445825,-6351.03,0.00019726,2]
[322015038,1712687445835,-500.0,0.00019726,2]
[322015039,1712687445844,-571.65,0.00019726,2]
[322015040,1712687445854,-500.0,0.00019726,2]
[322015041,1712687445864,-500.0,0.00019726,2]
[322015042,1712687445873,-1254.69,0.00019726,2]
[322015043,1712687445883,-500.0,0.00019726,2]
[322015044,1712687445892,-816.55,0.00019726,2]
[322015045,1712687445901,-523.23,0.00019726,2]
[322015046,1712687445911,-500.0,0.00019726,2]
[322015047,1712687445920,-500.0,0.00019726,2]
[322015048,1712687445929,-740.6,0.00019726,2]
[322015049,1712687445938,-1506.67,0.00019726,2]
[322015050,1712687445947,-924.41,0.00019726,2]
[322015051,1712687445958,-548.87,0.00019726,2]
[322015052,1712687445967,-902.98,0.00019726,2]
[322015053,1712687445976,-883.25,0.00019726,2]
[322015054,1712687445985,-500.0,0.00019726,2]
[322015056,1712687445995,-500.0,0.00019726,2]
[322015057,1712687446004,-591.10428384,0.00019726,2]
[322015058,1712687446013,-521.13,0.00019726,2]
[322015059,1712687446022,-578.21,0.00019726,2]
[322015060,1712687446031,-638.76,0.00019726,2]
[322015061,1712687446040,-500.0,0.00019726,2]
[322015062,1712687446050,-500.0,0.00019726,2]
[322015063,1712687446059,-500.0,0.00019726,2]
[322015064,1712687446068,-1113.68,0.00019726,2]
[322015065,1712687446078,-500.0,0.00019726,2]
[322015066,1712687446087,-1454.91,0.00019726,2]
[322015067,1712687446096,-500.0,0.00019726,2]
[322015069,1712687446105,-500.0,0.00019726,2]
[322015071,1712687446114,-151.57908048,0.00019726,2]
[322015073,1712687446123,-818.77,0.00019726,2]
[322015075,1712687446132,-500.0,0.00019726,2]
[322015077,1712687446142,-870.77,0.00019726,2]
[322015079,1712687446151,-594.45,0.00019726,2]
[322015080,1712687446160,-630.88,0.00019726,2]
[322015081,1712687446169,-500.0,0.00019726,2]
[322015082,1712687446178,-1318.04,0.00019726,2]
[322015083,1712687446188,-2059.55,0.00019726,2]
[322015085,1712687446197,-1412.05,0.00019726,2]
[322015087,1712687446206,-500.0,0.00019726,2]
[322015089,1712687446216,-207.94633197,0.000198,2]
[322015091,1712687446225,-650.49195504,0.00019802,2]
[322015093,1712687446234,-221.83669334,0.00019825,2]
[322015095,1712687446244,-500.0,0.000199,2]
[322015097,1712687446252,-7005.21328238,0.000199,2]
[322015099,1712687446262,-155.97634317,0.000199,2]
[322015101,1712687446271,-1570.24668823,0.000199,2]
[322015103,1712687446280,-150.0,0.00019931,2]
[322015105,1712687446290,-332.24789751,0.00019989,2]
[322015107,1712687446300,-1000.0,0.00019999,2]